Cogmind - Beta 10.2 @@@ ROGUE MODE // 2020.12.29 @ 17:04:51 Player: OccultOnion Result: Destroyed by G-34 Mercenary with Small Laser Performance ------------- Evolutions (1) 500 Regions Visited (3) 600 Robots Destroyed (27) 135 Value Destroyed (700) 700 Prototype IDs (1) 20 Alien Tech Used (0) 0 Bonus (0) 0 TOTAL SCORE: 1955 Bonus ------- None Cogmind --------- Core Integrity 0/400 Matter 300/300 Energy 250/250 System Corruption 0% Temperature Cool (6) Movement Walking (120) Location -9/Storage Parts ------- > --- POWER (1) -------- Ion Engine > --- PROPULSION (3) --- Aluminum Leg Aluminum Leg Aluminum Leg > --- UTILITY (3) ------ Heat Sink Small Storage Unit Small Storage Unit > --- WEAPON (2) ------- Small Laser Hammer > --- INVENTORY (8) ---- Ion Engine Aluminum Leg Heat Sink Advanced Signal Interpreter Drone Bay (2/2) Small Laser Small Laser Autogun Peak State ------------ > --- POWER ------------ Light Nuclear Core > --- PROPULSION ------- Light Treads Aluminum Leg > --- UTILITY ---------- Small Storage Unit Small Storage Unit Terrain Scanner > --- WEAPON ----------- Improved EM Shotgun Small Laser > --- INVENTORY -------- Ion Engine Heat Sink Advanced Signal Interpreter Hammer [Rating: 12] Favorites ----------- Power Ion Engine Engine Ion Engine Power Core Light Nuclear Core Propulsion Aluminum Leg Treads Light Treads Leg Aluminum Leg Wheel Compact Wheel Utility Small Storage Unit Device Terrain Scanner Storage Small Storage Unit Weapon Medium Laser Energy Gun Medium Laser Ballistic Gun Assault Rifle Impact Weapon Hammer Build | -11 -10 -9 -9 ------- Run | Scr Mat Mat Sto Slots Evolved 2 | . . 2 . Power . | . . . . Propulsion 1 | . . 1 . Utility 1 | . . 1 . Weapon . | . . . . Parts Attached 23 | 1 4 6 12 Power 2 | . . . 2 Engine 1 | . . . 1 Core 1 | . . . 1 Reactor . | . . . . Propulsion 7 | . . 2 5 Treads 1 | . . . 1 Leg 4 | . . . 4 Wheel 2 | . . 2 . Hover . | . . . . Flight . | . . . . Utility 4 | 1 1 1 1 Device 3 | 1 1 . 1 Storage 1 | . . 1 . Processor . | . . . . Hackware . | . . . . Protection . | . . . . Artifact . | . . . . Weapon 10 | . 3 3 4 Energy Gun 5 | . 1 1 3 Energy Cannon . | . . . . Ballistic Gun 2 | . 1 1 . Ballistic Cannon . | . . . . Launcher . | . . . . Special Weapon . | . . . . Impact Weapon 3 | . 1 1 1 Slashing Weapon . | . . . . Piercing Weapon . | . . . . Special Melee Weapon . | . . . . Unidentified Prototypes 1 | . . . 1 Parts Lost 13 | . 3 6 4 Power 2 | . . 1 1 Propulsion 6 | . 1 3 2 Utility 2 | . 1 . 1 Weapon 3 | . 1 2 . Highest Loss Streak 5 | . 2 5 4 Average Slot Usage (%) 89 | . 97 98 71 Engine 10 | . 14 11 4 Treads 1 | . . . 3 Leg 19 | . 26 11 16 Wheel 5 | . . 21 . Device 10 | . 13 11 5 Storage 18 | . 14 20 22 Energy Gun 11 | . 14 11 7 Ballistic Gun 6 | . 12 5 . Impact Weapon 5 | . 1 5 10 Naked Turns . | . . . . Heaviest Build 18 | 14 14 18 17 Greatest Support 32 | 20 20 32 30 Greatest Overweight (x) 3 | . 1 3 3 Average Overweight (x) . | . . . . Largest Inventory Capacity 8 | 6 6 8 8 Average Capacity 6 | 6 6 7 8 Most Carried 8 | 6 6 8 8 Average Carried 5 | 5 5 6 4 Final Capacity 8 | 6 6 8 8 Final Carried 8 | 6 6 8 8 Class Distribution -------------------- 86% | Mutant 13% | Scavenger-Mutant Dominant Class ---------------- Mutant | -10/Materials Mutant | -9/Materials Mutant | -9/Storage Resources | -11 -10 -9 -9 ----------- Run | Scr Mat Mat Sto Matter Collected 564 | 243 158 63 100 Remotely . | . . . . Salvage Created 882 | 85 357 183 257 Parts 45 | 2 20 12 11 Haulers Intercepted . | . . . . Recyclers Shooed 1 | . 1 . . Parts Field Recycled . | . . . . Retrieved Matter . | . . . . Parts Self-Destructed . | . . . . Prevented . | . . . . Kills | -11 -10 -9 -9 ------- Run | Scr Mat Mat Sto Combat Hostiles Destroyed 24 | . 12 6 6 Melee 1 | . . . 1 Guns 22 | . 12 6 4 Classes Destroyed 6 | 2 3 1 . Builder 1 | . 1 . . Tunneler 1 | 1 . . . Recycler 1 | 1 . . . Swarmer 8 | . 6 2 . Grunt 14 | . 6 3 5 Sentry 2 | . . 1 1 Best Kill Streak 6 | 2 6 3 4 Combat Bots Only 5 | . 5 3 4 Max Kills in Single Turn 2 | 1 1 2 1 Gunslinging 1 | . . 1 . Exploded . | . . . . Melee 1 | . . . 1 Uniques/NPCs Destroyed . | . . . . Combat | -11 -10 -9 -9 -------- Run | Scr Mat Mat Sto Damage Taken 1765 | . 462 432 871 Core 539 | . 137 118 284 Absorbed by Shields . | . . . . Core Remaining (%) 72 | 100 45 . . Volleys Fired 99 | 11 41 23 24 Largest 2 | 2 2 2 1 Hottest 70 | 70 70 70 40 Shots Fired 155 | 22 80 29 24 Gun 155 | 22 80 29 24 Cannon . | . . . . Launcher . | . . . . Special . | . . . . Kinetic 60 | 11 41 8 . Thermal 95 | 11 39 21 24 Explosive . | . . . . Electromagnetic . | . . . . Robot Hit Streak 19 | 6 7 19 10 Robot Miss Streak 5 | 2 5 3 1 Penetration Max . | . . . . Secondary Targets 1 | . . 1 . Max Gunslinging Chain 1 | . . 1 . Shots Hit Robots 133 | 15 46 20 52 Core Hits 45 | 3 19 11 12 Critical Hits . | . . . . Critical Kills . | . . . . Critical Parts Destroyed . | . . . . Melee Attacks 49 | . 7 8 34 Impact 49 | . 7 8 34 Slashing . | . . . . Piercing . | . . . . Sneak Attacks . | . . . . Combat Hostiles . | . . . . Follow-up Attacks . | . . . . Damage Inflicted 1715 | 178 588 278 671 Guns 1268 | 178 588 278 224 Cannons . | . . . . Explosions . | . . . . Melee 447 | . . . 447 Ramming . | . . . . Kinetic 423 | 78 274 71 . Thermal 845 | 100 314 207 224 Explosive . | . . . . Electromagnetic . | . . . . Impact 447 | . . . 447 Slashing . | . . . . Piercing . | . . . . Highest Corruption 2 | . 2 . . Average Corruption 2 | . 2 . . Corruption Purged . | . . . . Overload Shots . | . . . . Overflow Damage 14 | . . . 14 Projectiles . | . . . . Explosions . | . . . . Melee 14 | . . . 14 Knockbacks . | . . . . Impact . | . . . . Kinetic . | . . . . Secondary . | . . . . Self-Inflicted Damage . | . . . . Shots . | . . . . Rammed . | . . . . Targets Rammed . | . . . . Kicked . | . . . . Crushed . | . . . . Highest Temperature 108 | 74 108 74 1 Average Temperature 41 | 37 44 37 1 Received Heat Transfer 711 | . 162 207 342 Siege Activations . | . . . . Robots Corrupted . | . . . . Combat Hostiles . | . . . . Parts Fried 1 | . . . 1 Impact Corruptions 3 | . . . 3 Robots Melted . | . . . . Combat Hostiles . | . . . . Parts Melted 3 | . 2 1 . Heat Transferred 2326 | 296 925 605 500 Parts Sabotaged . | . . . . Parts Stolen . | . . . . Parts Stripped . | . . . . Power Chain Reactions . | . . . . Missiles Intercepted . | . . . . Alert | -11 -10 -9 -9 ------- Run | Scr Mat Mat Sto Peak Influence 321 | 10 321 288 235 Initial 100 | . 6 50 100 Average 134 | 4 151 110 154 Maximum Alert Level 1 | . 1 1 1 Low Security (%) 84 | 100 81 87 84 Level 1 15 | . 18 12 15 Level 2 . | . . . . Level 3 . | . . . . Level 4 . | . . . . Level 5 . | . . . . High Security . | . . . . Max Security . | . . . . Squads Dispatched 4 | . 2 2 . Investigation 1 | . . 1 . Extermination . | . . . . Reinforcement 3 | . 2 1 . Assault . | . . . . Garrison . | . . . . Intercept . | . . . . Construction Impeded . | . . . . Haulers Reinforced . | . . . . Stealth | -11 -10 -9 -9 --------- Run | Scr Mat Mat Sto Distress Signals 1 | . . 1 . Communications Jammed . | . . . . Distress Signals . | . . . . Times Spotted 39 | . 17 13 9 Peak Tracking Total 7 | . 7 5 5 Tactical Retreats 3 | . 1 1 1 Traps | -11 -10 -9 -9 ------- Run | Scr Mat Mat Sto Traps Triggered 2 | . 1 . 1 Indirectly . | . . . . Trap Hack Attempts . | . . . . Triggered . | . . . . Disarmed . | . . . . Reprogrammed . | . . . . Reused . | . . . . Traps Extracted . | . . . . Installed . | . . . . Triggered . | . . . . Machines | -11 -10 -9 -9 ---------- Run | Scr Mat Mat Sto Machines Disabled 1 | . 1 . . Max in Single Turn 1 | . 1 . . Machines Sabotaged . | . . . . Garrisons Compromised . | . . . . Overloaded Fab Kills . | . . . . Fab Network Shutdowns . | . . . . Hacking | -11 -10 -9 -9 --------- Run | Scr Mat Mat Sto Machines Accessed 6 | . 2 2 2 Terminals 6 | . 2 2 2 Fabricators . | . . . . Repair Stations . | . . . . Recycling Units . | . . . . Scanalyzers . | . . . . Garrison Access . | . . . . Total Hacks 18 | . 7 6 5 Successful 8 | . 3 3 2 Failed 10 | . 4 3 3 Catastrophic 2 | . 1 1 . Database Lockouts . | . . . . Manual 10 | . 6 2 2 Terminals 18 | . 7 6 5 Fabricators . | . . . . Repair Stations . | . . . . Recycling Units . | . . . . Scanalyzers . | . . . . Garrison Access . | . . . . Terminal Hacks 3 | . 1 1 1 Open Door 1 | . . . 1 Hauler Manifests 1 | . . 1 . Zone Layout 1 | . 1 . . Fabricator Hacks . | . . . . Repair Station Hacks . | . . . . Recycling Unit Hacks . | . . . . Scanalyzer . | . . . . Garrison Access Hacks . | . . . . Unauthorized Hacks 5 | . 2 2 1 Terminals 5 | . 2 2 1 Botnet 5 | . 2 2 1 Fabricators . | . . . . Repair Stations . | . . . . Recycling Units . | . . . . Scanalyzers . | . . . . Garrison Access . | . . . . Data Cores Recovered . | . . . . Used . | . . . . Hacking Detections 6 | . 2 2 2 Full Trace Events 1 | . . 1 . Feedback Events . | . . . . Feedback Blocked . | . . . . Robot Schematics Acquired . | . . . . Robots Built . | . . . . Matter . | . . . . Time . | . . . . Total Robot Build Rating . | . . . . Part Schematics Acquired . | . . . . Parts Built . | . . . . Matter . | . . . . Time . | . . . . Total Part Build Rating . | . . . . Parts Repaired . | . . . . Time . | . . . . Parts Recycled . | . . . . Recycled Matter . | . . . . Retrieved Matter . | . . . . Retrieved Components . | . . . . Parts Scanalyzed . | . . . . Part Schematics Acquired . | . . . . Parts Damaged . | . . . . Bothacking | -11 -10 -9 -9 ------------ Run | Scr Mat Mat Sto Used RIF Installer . | . . . . Robots Hacked . | . . . . Non-combat . | . . . . Combat . | . . . . Robot Hacks Applied . | . . . . Relay Couplers Released . | . . . . Robots Rewired . | . . . . Allies Hacked . | . . . . Hacks Repelled . | . . . . Allies | -11 -10 -9 -9 -------- Run | Scr Mat Mat Sto Total Allies . | . . . . Largest Group . | . . . . Highest-Rated Group . | . . . . Highest-Rated Ally . | . . . . Total Orders . | . . . . Ally Attacks . | . . . . Total Damage . | . . . . Kills . | . . . . Allies Corrupted . | . . . . Allies Melted . | . . . . Intel | -11 -10 -9 -9 ------- Run | Scr Mat Mat Sto Robot Analysis Total . | . . . . Derelict Logs Recovered . | . . . . Drone Launches . | . . . . Drone Recoveries . | . . . . Exploration | -11 -10 -9 -9 ------------- Run | Scr Mat Mat Sto Turns Passed 1036 | 59 439 240 298 Spaces Moved 465 | 19 222 145 79 Core 8 | . . 3 5 Treads . | . . . . Legs 315 | 19 222 . 74 Wheels 142 | . . 142 . Hover . | . . . . Flight . | . . . . Fastest Speed 100 | 120 120 100 120 Average Speed 118 | 120 123 102 131 Slowest Speed 200 | 120 150 200 200 Overloaded Moves . | . . . . Propulsion Burnouts . | . . . . Robots Hopped . | . . . . Cave-ins Triggered . | . . . . Exploration Rate (%) 20 | 3 45 15 17 Regions Visited 3 Branch Regions 1 Pre-discovered Areas . | . . . . Known Exits Taken . | . . . . Unknown Exits Taken 3 | 1 1 1 . Scrap Searched . | . . . . Spaces Dug 9 | . 2 7 . Terrain Destroyed 9 | . 2 7 . Melee 9 | . 2 7 . Projectile . | . . . . AOE . | . . . . Terrain Rammed . | . . . . Walls Destroyed . | . . . . Machines Disabled . | . . . . Actions | -11 -10 -9 -9 --------- Run | Scr Mat Mat Sto Total 725 | 33 296 196 200 Wait 60 | . 15 7 38 Move 462 | 18 221 144 79 Hop . | . . . . Pick Up 24 | 2 5 7 10 Fast Attach . | . . . . Attach 18 | 1 2 4 11 Detach 2 | . . . 2 Swap 5 | . 2 2 1 Drop 6 | 1 3 1 1 Fire 99 | 11 41 23 24 Melee 49 | . 7 8 34 Ram . | . . . . Kick . | . . . . Crush . | . . . . Escape Stasis . | . . . . Rewire . | . . . . Trap . | . . . . Miscellaneous . | . . . . Route ------- -11/Scrapyard -10/Materials (discovered 2 exits: *Mat / [*Min]) -9/Materials -9/Storage History --------- Turn | Location | Event 23 | -11/Scrapyard | Discovered new exit (range 2) 60 | -11/Scrapyard | Entered Materials 227 | -10/Materials | Discovered new exit (range 15) 303 | -10/Materials | Build established: Mutant 411 | -10/Materials | Core integrity fell below 50% 487 | -10/Materials | Discovered new exit (range 8) 499 | -10/Materials | Entered another Materials area 499 | -9/Materials | Evolved 2 slots: Propulsion x1, Utility x1 731 | -9/Materials | Discovered new exit (range 6) 739 | -9/Materials | Entered Storage 768 | -9/Storage | Lost 5 parts (1p3n1w) 821 | -9/Storage | Core integrity fell below 50% 866 | -9/Storage | Lost 4 parts (1p2n1u) 880 | -9/Storage | Core integrity fell below 20% 1037 | -9/Storage | Destroyed by G-34 Mercenary with Small Laser Last Messages --------------- 00966_ U-05 Engineer builds a Wall. 00967_ K-01 Serf collects debris. 00978_ K-01 Serf cleans the Compression Vault. 00983_ K-01 Serf collects debris. 00991_ G-34 Mercenary destroyed. 00992_ K-01 Serf collects debris. 00993_ Acquired 10 matter. 00995_ K-01 Serf cleans the Repair Station. 00996_ K-01 Serf collects debris. 00997_ Acquired Aluminum Leg. 00999_ Acquired Ion Engine. 01000_ K-01 Serf collects debris. 01013_ Connecting with Door Terminal... >>Open Sealed Heavy Doors opened. 01015_ Acquired Drone Bay. 01026_ G-34 Mercenary destroyed. 01028_ K-01 Serf collects debris. 01030_ R-06 Scavenger collects Aluminum Leg. 01033_ R-06 Scavenger collects Sml. Laser. Map ----- +----------------------------------------------------+ | ?????????????????????????????????????????? | | ?????????????????????????????????????????? | | ?????????????????????????????????????????? | | ?????????????????????????????????????????? | | ?????????????????????????????????????????? | | ?????????????????????????????????????????? | | ?????????????????????????????????????????? | | ?????????????????????????????????????????? | | ?????????????????????????????????????????? | | ?????????????????????????????????????????? | | ?????????????????????????????????????????? | | ????????????? ?????????????????????????? | | ????????????# ?????????????????????????? | | ????????????+ ?????????????????????????? | | ????????????# ?????????????????????????? | | ????????????# #????????????????????????? | | ????????????# #????????????????????????? | | ????????????# #????????????????????????? | | ????????????# ##???????????????????????? | | ????????????# "????????????????????????? | | ????????????# T????????????????????????? | | ????????????# "????????????????????????? | | ????????????# #????????????????????????? | | ????????????# ########?????????????????? | | ????????????# # #!!!!#?????????????????? | | ????????????# #@ #?????????????????? | | ????????????# g%# !!!#?????????????????? | | ????????????# rg#T######?????????????????? | | ????????????# ###??????????????????????? | | ????????????# #????????????????????????? | | ???########## #????????????????????????? | | ???? ## ##????R"#????????????????? | | ????"" """ # ####" "###??????????????? | | ???""" """ # ????????????? | | ?# """ """%+ ????????????? | | ?# # ????????????? | | ?# # ######/### ?????????????? | | ?# ## ##???????????????????????? | | ?# ## #????????????????????????? | | ?##"Y"####### #????????????????????????? | | ??#"""??????# #????????????????????????? | | ??###???????# ##???????????????????????? | | ???????????## ##???????????????????????? | | ???????????# ##???????????????????????? | | ???#???????# ^##?#?????????????????????? | | ???????????# #????????????????????????? | | ?????######## ##??????#????????????????? | | ???#?# ##???????????????????????? | | ?????# [ #????????#???????????????? | | ?????# %[ #????????????????????????? | +----------------------------------------------------+ Best States ------------- Heat Dissipation 38 Energy Generation 14 Energy Capacity 250 Matter Stores 300 Matter Capacity 300 Sight Range 16 Terrain Scan Range 16 Terrain Scan Density 10 Evasion (%) 40 Recoil Reduction 1 Item Schematics ----------------- None Robot Schematics ------------------ None Fabricated ------------ Nothing Alien Tech Used ----------------- None Achievements -------------- None Challenges ------------ None Game ------ Seed SniperThunderLoader Manual? 0 Play Time 00:12:08 Cumulative 76.4 hours Start 2020.12.29 @ 16:55:19 End 2020.12.29 @ 17:04:51 Sessions 1 Manual Loads 0 Difficulty Rogue Special Mode None Game No. 167 Rogue 167 Adventurer 0 Explorer 0 Win Type - Total 0 Types 0/0/0/0/0/0/0/0/0 Lore% 33 Gallery% 53 Achievement% 33 Wizard Run 0 Options --------- ASCII 0 Keyboard 1 Movement Numpad Keybinds 0 Fullscreen 2 Font 18/SmallcapsGlow Map View 76x50 Tactical HUD 1 Map Filters NONE Filters NONE Steam 1 RUN: b1e6269f-a52e-4f9b-a5a1-27b91dc74690